Cogmind - Beta 17.1 @@@ ROGUE MODE // 2026.09.06 @ 19:42:24 Player: Somberlain Result: Destroyed by P-60 Hacker with Shock Rifle Performance ------------- Evolutions (3) 1500 Regions Visited (8) 1600 Robots Destroyed (68) 340 Value Destroyed (2902) 2902 Prototype IDs (31) 620 Alien Tech Used (0) 0 Bonus (1074) 1074 TOTAL SCORE: 8036 Bonus ------- High Alert Combat Kills 67 Follower Combat Kills 7 Entered Garrisons 200 Used RIF Installer 500 Aligned with FarCom 300 Cogmind --------- Core Integrity 0/700 Matter 179/300 Energy 91/290 System Corruption 19% Temperature Warm (162) Movement Walking (115) Location -7/Factory Parts ------- > --- POWER (1) -------- Improved Deuterium Engine > --- PROPULSION (3) --- Carbon-fiber Leg Biometal Leg > --- UTILITY (7) ------ Medium Storage Unit Improved Signal Interpreter Improved Core Shielding Improved Medium Armor Plating System Shield > --- WEAPON (2) ------- Latent Energy Streamer Powered Hammer > --- INVENTORY (10) --- Improved Deuterium Engine Improved Melee Analysis Suite Advanced Transmission Jammer Improved Shield Generator Relay Coupler [Grunt] (22) Relay Coupler [Brawler] (26) System Restoration Module System Restoration Module System Restoration Module Improved Datajack Peak State ------------ > --- POWER ------------ Improved Deuterium Engine > --- PROPULSION ------- Carbon-fiber Leg Myomer Leg Biometal Leg > --- UTILITY ---------- Improved Heat Sink Medium Storage Unit Improved Signal Interpreter Advanced Transmission Jammer Advanced Phase Shifter Improved Core Shielding System Shield > --- WEAPON ----------- Latent Energy Streamer Powered Hammer > --- INVENTORY -------- Improved Deuterium Engine Improved Melee Analysis Suite Improved Core Shielding Relay Coupler [NC] Relay Coupler [Grunt] Relay Coupler [Brawler] Relay Coupler [Sentry] Gauss Rifle Improved Datajack [Rating: 70] Favorites ----------- Power Ion Engine Engine Ion Engine Power Core Reinforced Fission Core Propulsion Improved Aluminum Leg Leg Improved Aluminum Leg Utility Small Storage Unit Device Improved Heat Sink Storage Small Storage Unit Processor Improved Signal Interpreter Hackware System Shield Protection Improved Core Shielding Weapon Flak Gun Energy Cannon Latent Energy Streamer Ballistic Gun Flak Gun Ballistic Cannon Heavy Mass Driver Impact Weapon Powered Hammer Special Melee Weapon Improved Datajack Build | -11 -10 -10 -10 -9 -8 -7 -7 -7 ------- Run | Yrd Mat Min Exi Min Mat Fac Gar Fac Slots Evolved 6 | . . . . . 4 2 . . Power . | . . . . . . . . . Propulsion 1 | . . . . . 1 . . . Utility 5 | . . . . . 3 2 . . Weapon . | . . . . . . . . . Parts Attached 64 | 6 . 2 1 1 22 5 20 7 Power 9 | 1 . . . . 5 . 3 . Engine 6 | 1 . . . . 4 . 1 . Core 3 | . . . . . 1 . 2 . Reactor . | . . . . . . . . . Propulsion 17 | 2 . . . 1 6 . 7 1 Treads . | . . . . . . . . . Leg 17 | 2 . . . 1 6 . 7 1 Wheel . | . . . . . . . . . Hover . | . . . . . . . . . Flight . | . . . . . . . . . Utility 22 | 1 . . . . 4 5 6 6 Device 9 | . . . . . 2 1 3 3 Storage 2 | 1 . . . . . 1 . . Processor 4 | . . . . . 2 . 1 1 Hackware 4 | . . . . . . 3 . 1 Protection 3 | . . . . . . . 2 1 Artifact . | . . . . . . . . . Weapon 16 | 2 . 2 1 . 7 . 4 . Energy Gun . | . . . . . . . . . Energy Cannon 1 | . . . 1 . . . . . Ballistic Gun 11 | 2 . 1 . . 6 . 2 . Ballistic Cannon 1 | . . . . . . . 1 . Launcher . | . . . . . . . . . Special Weapon . | . . . . . . . . . Impact Weapon 1 | . . . . . 1 . . . Slashing Weapon . | . . . . . . . . . Piercing Weapon . | . . . . . . . . . Special Melee Weapon 2 | . . 1 . . . . 1 . Unidentified Prototypes . | . . . . . . . . . Parts Lost 21 | . . . . . 2 . 16 3 Power 1 | . . . . . 1 . . . Propulsion 8 | . . . . . 1 . 6 1 Utility 7 | . . . . . . . 6 1 Weapon 5 | . . . . . . . 4 1 Highest Loss Streak 8 | . . . . . 2 . 8 1 To Critical Strikes . | . . . . . . . . . Average Backups 6 | . 1 3 3 4 4 8 8 9 Power 1 | . . 1 1 1 1 1 1 1 Propulsion . | . . . . . . 1 . . Utility 2 | . . . . . . 1 3 6 Weapon 2 | . . 1 1 2 2 4 2 1 Tool/Special . | . . . . . . . . . Unused Backups 11 | . . . . . . 1 . 10 Power 2 | . . . . . . 1 . 1 Propulsion . | . . . . . . . . . Utility 9 | . . . . . . . . 9 Weapon . | . . . . . . . . . Tool/Special . | . . . . . . . . . Average Slot Usage (%) 86 | . 84 85 85 85 86 98 80 93 Engine 8 | . 14 14 14 14 8 7 5 7 Leg 23 | . 27 28 28 28 25 23 19 22 Device 10 | . . . . . 13 12 11 19 Storage 9 | . 14 14 14 14 9 7 7 7 Processor 5 | . . . . . 10 15 4 6 Hackware 6 | . . . . . . 16 12 7 Protection 2 | . . . . . . . 2 8 Energy Cannon 2 | . . . 6 14 2 . 1 . Ballistic Gun 11 | . 27 26 21 14 15 8 5 2 Impact Weapon 2 | . . . . . . 5 4 6 Peak Build Rating 70 | 6 6 6 15 16 39 45 59 70 Average Rating 33 | 4 5 6 10 15 28 39 41 60 On Entrance 20 | . 6 6 6 15 16 33 41 59 Avg Prop Armor Cover (%) . | . . . . . . . . . Naked Turns . | . . . . . . . . . Heaviest Build 47 | 13 13 12 21 21 31 30 46 47 Greatest Support 68 | 20 20 20 20 23 43 41 68 68 Greatest Overweight (x) 12 | 1 1 . 1 1 . . 12 . Average Overweight (x) . | . . . . . . . . . Largest Inventory Capacity 10 | 8 8 8 8 8 8 10 10 10 Average Capacity 8 | 7 8 8 8 8 8 9 10 10 Most Carried 10 | . 3 3 4 8 8 10 10 10 Average Carried 7 | . 1 3 3 7 7 8 8 9 Final Capacity 10 | 8 8 8 8 8 8 10 10 10 Final Carried 10 | . 3 3 4 8 8 10 10 10 Class Distribution -------------------- 39% | Mutant 15% | Bothacker-Mutant 14% | Skirmisher 12% | Hacker-Mutant 6% | Scavenger-Mutant 6% | Hacker-Assassin 3% | Assassin Dominant Class ---------------- Mutant | -10/Materials Mutant | -10/Mines Mutant | -10/Exiles Mutant | -9/Mines Skirmisher | -8/Materials Hacker-Assassin | -7/Factory Hacker-Mutant | -7/Garrison Bothacker-Mutant | -7/Factory Resources | -11 -10 -10 -10 -9 -8 -7 -7 -7 ----------- Run | Yrd Mat Min Exi Min Mat Fac Gar Fac Matter Collected 2347 | 211 215 55 59 10 365 302 725 405 Remotely . | . . . . . . . . . Salvage Created 2264 | . 170 . . 56 626 249 744 419 Parts 112 | . 11 . . 7 34 9 30 21 Haulers Intercepted 2 | . . . . . 2 . . . Recyclers Shooed . | . . . . . . . . . Parts Field Recycled . | . . . . . . . . . Retrieved Matter . | . . . . . . . . . Parts Self-Destructed . | . . . . . . . . . Prevented . | . . . . . . . . . Parts Restored . | . . . . . . . . . Kills | -11 -10 -10 -10 -9 -8 -7 -7 -7 ------- Run | Yrd Mat Min Exi Min Mat Fac Gar Fac Combat Hostiles Destroyed 51 | . 5 . . 3 12 3 20 8 Melee 2 | . . . . . . 1 1 . Guns 30 | . 5 . . . 7 1 13 4 AOE 11 | . . . . 3 4 . . 4 Classes Destroyed 13 | . 4 . . . 3 2 1 3 Worker 4 | . . . . . 1 2 . 1 Builder 1 | . . . . . . . . 1 Hauler 2 | . . . . . 2 . . . Recycler 1 | . . . . . . 1 . . Operator 5 | . 2 . . . 1 1 1 . Watcher 4 | . 1 . . . 2 . . 1 Swarmer 21 | . 3 . . 3 3 . 9 3 Grunt 18 | . 2 . . . 6 1 7 2 Brawler 1 | . . . . . . . 1 . Duelist 1 | . . . . . . . . 1 Sentry 5 | . . . . . 3 . 2 . Hunter 1 | . . . . . . . . 1 Programmer 4 | . . . . . . 2 1 1 Best Kill Streak 6 | . 3 . . 3 4 2 6 5 Combat Bots Only 6 | . 3 . . 3 4 1 6 4 Max Kills in Single Turn 4 | . 1 . . 3 2 1 1 4 Gunslinging . | . . . . . . . . . Exploded 3 | . . . . 3 2 . . 3 Melee 1 | . . . . . . 1 1 . Uniques/NPCs Destroyed . | . . . . . . . . . Combat | -11 -10 -10 -10 -9 -8 -7 -7 -7 -------- Run | Yrd Mat Min Exi Min Mat Fac Gar Fac Hostile Shots Fired 474 | . 47 . . 1 28 17 329 52 Missed 188 | . 21 . . . 7 6 122 32 Hits 286 | . 26 . . 1 21 11 207 20 Melee 3 | . . . . . . . 3 . Projectile 283 | . 26 . . 1 21 11 204 20 Critical Strikes 10 | . . . . . 2 . 7 1 Damage Taken 4226 | . 242 . . 9 280 168 2950 577 Core 745 | . 21 . . . 24 62 618 20 Absorbed by Shields 9 | . . . . . . . 9 . Redirected to Shielding 8 | . . . . . . . . 8 Core Remaining (%) 95 | 100 . . . 91 95 . . . Volleys Fired 162 | . 40 . . 1 28 8 61 24 Largest 2 | . 2 . . 1 2 2 2 1 Hottest 88 | . 40 . . 60 60 60 88 60 Shots Fired 258 | . 80 . . 1 55 11 89 22 Gun 242 | . 80 . . . 52 10 83 17 Cannon 16 | . . . . 1 3 1 6 5 Launcher . | . . . . . . . . . Special . | . . . . . . . . . Kinetic 242 | . 80 . . . 52 10 83 17 Thermal . | . . . . . . . . . Explosive . | . . . . . . . . . Electromagnetic 16 | . . . . 1 3 1 6 5 Robot Hit Streak 10 | . 4 . . . 10 3 6 4 Robot Miss Streak 10 | . 7 . . . 10 6 9 2 Penetration Max 1 | . . . . . . . . 1 Secondary Targets 5 | . 2 . . . . . 3 . Max Gunslinging Chain 1 | . 1 . . . . . 1 . Shots Hit Robots 186 | . 37 1 . . 40 23 72 13 Core Hits 153 | . 14 . . 3 54 14 49 19 Critical Kills 1 | . . . . . . . 1 . Critical Parts Destroyed 8 | . . . . . . 3 4 1 Critical Strikes 9 | . . . . . . 3 5 1 Destroy 2 | . . . . . . . 1 1 Smash 7 | . . . . . . 3 4 . Melee Attacks 100 | . . 1 . . 3 14 66 16 Impact 99 | . . . . . 3 14 66 16 Slashing . | . . . . . . . . . Piercing . | . . . . . . . . . Sneak Attacks 5 | . . 1 . . . 3 1 . Combat Hostiles . | . . . . . . . . . Follow-up Attacks . | . . . . . . . . . Damage Inflicted 6139 | . 391 . . 279 1370 825 2043 1231 Guns 2243 | . 391 . . . 567 120 899 266 Cannons 40 | . . . . . 22 . 16 2 Explosions 2187 | . . . . 279 781 . 203 924 Melee 1669 | . . . . . . 705 925 39 Ramming . | . . . . . . . . . Kinetic 2243 | . 391 . . . 567 120 899 266 Thermal . | . . . . . . . . . Explosive 225 | . . . . . 38 . . 187 Electromagnetic 2002 | . . . . 279 765 . 219 739 Impact 1669 | . . . . . . 705 925 39 Slashing . | . . . . . . . . . Piercing . | . . . . . . . . . Highest Corruption 20 | . . . . 3 9 3 14 20 Average Corruption 9 | . . . . 3 6 3 9 14 Corruption Purged 10 | . . . . . . . . 10 Corruption Blocked 8 | . . . . . . . 8 . Effects 176 | . . . . 1 47 12 67 49 Message Errors 42 | . . . . . 13 1 15 13 Matter Fused 38 | . . . . . 13 4 12 9 Heat Flow Errors 22 | . . . . . 4 2 8 8 Energy Discharges 31 | . . . . . 6 . 12 13 Parts Rejected 4 | . . . . . 1 . 3 . Data Loss (minor) 20 | . . . . . 5 3 9 3 Data Loss (major) 7 | . . . . 1 2 1 3 . Misfires 7 | . . . . . 3 . 4 . Alerts 3 | . . . . . . 1 1 1 Weapon Failures 2 | . . . . . . . . 2 Overload Shots . | . . . . . . . . . Overflow Damage 675 | . . . . 4 10 258 270 133 Projectiles . | . . . . . . . . . Explosions 147 | . . . . 4 10 . . 133 Melee 528 | . . . . . . 258 270 . Knockbacks 5 | . . . . . . 2 3 . Impact 5 | . . . . . . 2 3 . Kinetic . | . . . . . . . . . Secondary . | . . . . . . . . . Self-Inflicted Damage 370 | . . . . . . . 62 308 Shots 5 | . . . . . . . 1 4 Rammed . | . . . . . . . . . Targets Rammed . | . . . . . . . . . Kicked . | . . . . . . . . . Crushed . | . . . . . . . . . Highest Temperature 259 | . 12 . . 20 198 253 252 259 Average Temperature 73 | . 6 . . 10 54 118 63 96 Received Heat Transfer 958 | . 63 . . . 135 . 715 45 Effects 1 | . . . . . . . . 1 Energy Bleed 1 | . . . . . . . . 1 Siege Activations . | . . . . . . . . . Martial Activations . | . . . . . . . . . Shielding Activations . | . . . . . . . . . Robots Disrupted . | . . . . . . . . . Combat Hostiles . | . . . . . . . . . Robots Corrupted 11 | . . . . . 1 3 7 . Combat Hostiles 8 | . . . . . 1 1 6 . Parts Fried 14 | . . . . . 3 2 5 4 Impact Corruptions 27 | . . . . . . 12 15 . Robots Melted . | . . . . . . . . . Combat Hostiles . | . . . . . . . . . Parts Melted . | . . . . . . . . . Heat Transferred . | . . . . . . . . . Parts Sabotaged . | . . . . . . . . . Parts Stolen . | . . . . . . . . . Parts Stripped . | . . . . . . . . . Power Chain Reactions . | . . . . . . . . . Latent Energy Used 2484 | . . . . 164 578 200 646 896 LE Corruption 42 | . . . . 3 9 3 13 14 Alert | -11 -10 -10 -10 -9 -8 -7 -7 -7 ------- Run | Yrd Mat Min Exi Min Mat Fac Gar Fac Maximum Alert Level 3 | . . . . . 1 . 3 2 Low Security (%) 61 | 100 100 100 . 100 98 100 12 18 Level 1 18 | . . . . . 1 . 27 58 Level 2 17 | . . . . . . . 49 23 Level 3 2 | . . . . . . . 10 . Level 4 . | . . . . . . . . . Level 5 . | . . . . . . . . . High Security . | . . . . . . . . . Max Security . | . . . . . . . . . Peak Influence 947 | . 110 12 . 131 203 72 947 512 Initial 497 | . . 12 . . 29 70 15 497 Average 196 | . 27 2 . 23 60 22 440 303 Influence Increases 2657 | . 174 . . 139 541 172 1112 519 Destroy 0b10 Robot/C 1040 | . 100 . . 80 240 60 400 160 Destroy 0b10 Robot/NC 85 | . 15 . . . 30 20 5 15 Destroy Leader 162 | . 22 . . 10 68 20 20 22 Allied During Kill 10 | . . . . 10 . . . . Successful Hack 29 | . 7 . . . . 22 . . Disable Machine 330 | . 15 . . 15 60 30 45 165 Anti-Garrison Action 350 | . . . . . . . 350 . Destroy Structure 396 | . . . . 9 83 20 127 157 Lose Combat Pursuer 255 | . 15 . . 15 60 . 165 . Influence Decreases 2145 | . 142 32 . 64 462 304 187 954 Entered New Map 607 | . . 20 . . 46 84 7 450 Time Decay 1278 | . 142 12 . 64 366 220 . 474 Lost Part 210 | . . . . . 20 . 160 30 Lost Ally 20 | . . . . . . . 20 . Purge Threat 30 | . . . . . 30 . . . Squads Dispatched 11 | . 3 . . . 3 2 . 3 Investigation . | . . . . . . . . . Extermination 4 | . . . . . . 2 . 2 Reinforcement 7 | . 3 . . . 3 . . 1 Assault . | . . . . . . . . . Garrison . | . . . . . . . . . Intercept . | . . . . . . . . . Searches Triggered . | . . . . . . . . . Construction Impeded . | . . . . . . . . . Haulers Reinforced . | . . . . . . . . . Active Scanning Responses . | . . . . . . . . . Cargo Convoy Interrupts . | . . . . . . . . . Stealth | -11 -10 -10 -10 -9 -8 -7 -7 -7 --------- Run | Yrd Mat Min Exi Min Mat Fac Gar Fac Distress Signals 6 | . 1 . . . 4 . . 1 Communications Jammed . | . . . . . . . . . Distress Signals . | . . . . . . . . . Times Spotted 89 | . 18 2 . 1 19 7 28 14 Peak Tracking Total 7 | . 3 2 . 1 6 1 7 3 Tactical Retreats 11 | . 1 . . 1 2 . 7 . Traps | -11 -10 -10 -10 -9 -8 -7 -7 -7 ------- Run | Yrd Mat Min Exi Min Mat Fac Gar Fac Traps Triggered 13 | . 5 . . . 1 . 6 1 Indirectly 1 | . . . . . . . 1 . Trap Hack Attempts 1 | . . . . . . . 1 . Triggered . | . . . . . . . . . Disarmed . | . . . . . . . . . Reprogrammed 1 | . . . . . . . 1 . Reused . | . . . . . . . . . Traps Extracted . | . . . . . . . . . Installed . | . . . . . . . . . Triggered . | . . . . . . . . . Most Traps Carried 4 | . . . . 4 4 2 . . Machines | -11 -10 -10 -10 -9 -8 -7 -7 -7 ---------- Run | Yrd Mat Min Exi Min Mat Fac Gar Fac Machines Disabled 27 | . 1 . . 1 4 2 8 11 Max in Single Turn 3 | . 1 . . 1 3 2 3 3 Garrison Relay 2 | . . . . . . . 2 . Phase Generator 1 | . . . . . . . 1 . Machines Repaired . | . . . . . . . . . Machines Dismantled . | . . . . . . . . . Machines Sabotaged . | . . . . . . . . . Overloaded Fab Kills . | . . . . . . . . . Hacking | -11 -10 -10 -10 -9 -8 -7 -7 -7 --------- Run | Yrd Mat Min Exi Min Mat Fac Gar Fac Machines Accessed 13 | . 1 . 2 . 4 3 2 1 Terminals 9 | . 1 . . . 3 2 2 1 Fabricators . | . . . . . . . . . Repair Stations . | . . . . . . . . . Recycling Units . | . . . . . . . . . Scanalyzers 1 | . . . . . 1 . . . Garrison Access 1 | . . . . . . 1 . . Total Hacks 22 | . 2 . 2 . 6 4 7 1 Successful 10 | . 1 . 2 . 3 3 1 . Failed 11 | . 1 . . . 2 1 6 1 Catastrophic 3 | . . . . . 1 1 1 . Database Lockouts 1 | . . . . . 1 . . . Manual 16 | . 2 . 1 . 5 2 5 1 Terminals 17 | . 2 . . . 4 3 7 1 Fabricators . | . . . . . . . . . Repair Stations . | . . . . . . . . . Recycling Units . | . . . . . . . . . Scanalyzers 2 | . . . . . 2 . . . Garrison Access 1 | . . . . . . 1 . . Terminal Hacks 8 | . 1 . 2 . 2 2 1 . Record 1 | . . . 1 . . . . . Open Door 1 | . . . . . . . 1 . Unreport Threat 1 | . . . . . 1 . . . Recall Reinforcements 1 | . . . . . 1 . . . Hauler Manifests 1 | . . . . . . 1 . . Registered Components 2 | . 1 . . . . 1 . . Proto ID Catalog 1 | . . . 1 . . . . . Fabricator Hacks . | . . . . . . . . . Repair Station Hacks . | . . . . . . . . . Recycling Unit Hacks . | . . . . . . . . . Scanalyzer 1 | . . . . . 1 . . . Retrieve Study 1 | . . . . . 1 . . . Garrison Access Hacks 1 | . . . . . . 1 . . Unlock Access 1 | . . . . . . 1 . . Unauthorized Hacks . | . . . . . . . . . Terminals . | . . . . . . . . . Fabricators . | . . . . . . . . . Repair Stations . | . . . . . . . . . Recycling Units . | . . . . . . . . . Scanalyzers . | . . . . . . . . . Garrison Access . | . . . . . . . . . Data Cores Recovered . | . . . . . . . . . Used . | . . . . . . . . . Hacking Detections 8 | . 1 . . . 2 2 2 1 Full Trace Events . | . . . . . . . . . Feedback Events . | . . . . . . . . . Feedback Blocked . | . . . . . . . . . Robot Schematics Acquired . | . . . . . . . . . Robots Built . | . . . . . . . . . Authchips . | . . . . . . . . . Time . | . . . . . . . . . Total Robot Build Rating . | . . . . . . . . . Part Schematics Acquired . | . . . . . . . . . Parts Built . | . . . . . . . . . Authchips . | . . . . . . . . . Time . | . . . . . . . . . Total Part Build Rating . | . . . . . . . . . Part Studies Acquired 1 | . . . . . 1 . . . Parts Repaired . | . . . . . . . . . Time . | . . . . . . . . . Parts Recycled . | . . . . . . . . . Recycled Matter . | . . . . . . . . . Retrieved Matter . | . . . . . . . . . Retrieved Components . | . . . . . . . . . Parts Scanalyzed . | . . . . . . . . . Part Schematics Acquired . | . . . . . . . . . Parts Damaged . | . . . . . . . . . Bothacking | -11 -10 -10 -10 -9 -8 -7 -7 -7 ------------ Run | Yrd Mat Min Exi Min Mat Fac Gar Fac Used RIF Installer 1 | . . . . . . . 1 . Robots Hacked 1 | . . 1 . . . . . . Non-combat . | . . . . . . . . . Combat 1 | . . 1 . . . . . . Robot Hacks Applied 1 | . . 1 . . . . . . parse_system 1 | . . 1 . . . . . . Relay Couplers Released 10 | . . . . . . . 10 . Machine Destruction 10 | . . . . . . . 10 . Attached 1 | . . . . . . . . 1 Fabnet Peak Effective % . | . . . . . . . . . Robots Rewired 2 | . . . . . . . 2 . Allies Hacked . | . . . . . . . . . Hacks Repelled . | . . . . . . . . . Allies | -11 -10 -10 -10 -9 -8 -7 -7 -7 -------- Run | Yrd Mat Min Exi Min Mat Fac Gar Fac Total Allies 4 | . . . . 2 . . 2 . Largest Group 2 | . . . . 2 . . 2 . Highest-Rated Group 64 | . . . . 42 . . 64 . Highest-Rated Ally 39 | . . . . 31 . . 39 . Total Orders . | . . . . . . . . . Ally Attacks 8 | . . . . 4 . . 4 . Total Damage 95 | . . . . 22 . . 73 . Kills 2 | . . . . 1 . . 1 . Allies Corrupted 1 | . . . . . . . 1 . Allies Melted . | . . . . . . . . . Intel | -11 -10 -10 -10 -9 -8 -7 -7 -7 ------- Run | Yrd Mat Min Exi Min Mat Fac Gar Fac Active Infowar (turns) 3675 | . . . . . 1150 680 890 955 Optics 1883 | . . . . . 1139 680 64 . Traps 2201 | . . . . . 1150 680 371 . Jamming 1474 | . . . . . . . 519 955 Robot Analysis Total . | . . . . . . . . . Derelict Logs Recovered 1 | . . . . 1 . . . . Drone Launches . | . . . . . . . . . Drone Recoveries . | . . . . . . . . . Exploration | -11 -10 -10 -10 -9 -8 -7 -7 -7 ------------- Run | Yrd Mat Min Exi Min Mat Fac Gar Fac Turns Passed 7424 | 48 770 90 405 697 1555 680 1967 1212 Spaces Moved 4596 | 35 524 72 276 392 908 455 1194 740 Core 7 | 4 . . . . . . 3 . Treads . | . . . . . . . . . Legs 4589 | 31 524 72 276 392 908 455 1191 740 Wheels . | . . . . . . . . . Hover . | . . . . . . . . . Flight . | . . . . . . . . . Fastest Speed 50 | 50 120 120 120 120 110 110 110 115 Average Speed 122 | 113 120 120 146 166 111 110 121 115 Slowest Speed 650 | 120 190 120 190 190 120 110 650 116 Overloaded Moves . | . . . . . . . . . Propulsion Burnouts . | . . . . . . . . . Robots Hopped . | . . . . . . . . . Potential Cave-ins . | . . . . . . . . . Cave-ins Triggered . | . . . . . . . . . Exploration Rate (%) 46 | 3 81 18 61 74 59 15 89 15 Regions Visited 8 Branch Regions 3 Pre-discovered Areas 1 | . . . . 1 . . . . Known Exits Taken 2 | . . . . . 1 1 . . Unknown Exits Taken 5 | 1 1 1 1 1 . . . . Scrap Searched 1 | . . . . 1 . . . . Spaces Dug 43 | . . . . . 2 . 27 14 Terrain Destroyed 492 | . . . . 14 105 45 128 200 Melee 43 | . . . . . 2 . 27 14 Projectile 2 | . . . . . . . 2 . AOE 447 | . . . . 14 103 45 99 186 Terrain Rammed . | . . . . . . . . . Walls Destroyed . | . . . . . . . . . Machines Disabled . | . . . . . . . . . Actions | -11 -10 -10 -10 -9 -8 -7 -7 -7 --------- Run | Yrd Mat Min Exi Min Mat Fac Gar Fac Total 5944 | 40 585 74 277 434 1394 598 1499 1043 Wait 848 | . 10 . . 36 405 101 62 234 Move 4589 | 34 523 71 275 391 907 455 1193 740 Hop . | . . . . . . . . . Pick Up 36 | . 3 . 1 4 7 4 12 5 Fast Attach 47 | 6 9 . . . 9 4 14 5 Attach 21 | . . . . . . . 16 5 Detach 13 | . . . . . . 2 6 5 Swap 49 | . . 2 1 1 20 5 16 4 Drop 35 | . . . . 1 15 5 9 5 Fire 162 | . 40 . . 1 28 8 61 24 Melee 100 | . . 1 . . 3 14 66 16 Ram . | . . . . . . . . . Kick . | . . . . . . . . . Crush . | . . . . . . . . . Escape Stasis 20 | . . . . . . . 20 . Rewire 23 | . . . . . . . 23 . Trap 1 | . . . . . . . 1 . Miscellaneous . | . . . . . . . . . Route ------- -11/Scrapyard -10/Materials (discovered 3 exits: [*Mat x2] / [*Min]) -10/Mines -10/Exiles (discovered 2 exits: [*Min x2]) -9/Mines (discovered 2 exits: *Mat x2) -8/Materials -7/Factory -7/Garrison (discovered 3 exits: *Fac x3) -7/Factory History --------- Turn | Location | Event 2 | -11/Scrapyard | Met Revision 17 9 | -11/Scrapyard | Discovered new exit (range 15) 49 | -11/Scrapyard | Entered Materials 189 | -10/Materials | Met 8R-AWN 196 | -10/Materials | Discovered new exit (range 13) 204 | -10/Materials | Discovered new exit (range 14) 349 | -10/Materials | Build established: Mutant 620 | -10/Materials | Discovered new exit (range 7) 819 | -10/Materials | Entered Mines 821 | -10/Mines | Followed 8R-AWN into the Mines 836 | -10/Mines | Joined a pair of Derelicts in attacking an 0b10 outpost 903 | -10/Mines | Discovered new exit (range 5) 909 | -10/Mines | Entered Exiles 932 | -10/Exiles | Discovered new exit (range 14) 950 | -10/Exiles | Welcomed by 8R-AWN 967 | -10/Exiles | Met EX-HEX 1002 | -10/Exiles | Met EX-BIN 1017 | -10/Exiles | Aligned with FarCom system 1019 | -10/Exiles | Given EX-Vault access code 1046 | -10/Exiles | Opened EX-Vault 1106 | -10/Exiles | Found Latent Energy Streamer 1139 | -10/Exiles | Warned to stay clear of 0b10 Research branches 1194 | -10/Exiles | Met EX-DEC 1293 | -10/Exiles | Discovered new exit (range 12) 1314 | -10/Exiles | Left Exiles lab with Latent Energy Streamer 1314 | -10/Exiles | Entered Mines 1375 | -9/Mines | Learned location of Storage (-7) 1432 | -9/Mines | Found a hidden stash of uninstalled traps 1435 | -9/Mines | Received a Rocket Launcher from a helpful Derelict 1525 | -9/Mines | Discovered new exit (range 8) 2002 | -9/Mines | Discovered new exit (range 6) 2011 | -9/Mines | Entered Materials 2011 | -8/Materials | Evolved 4 slots: Propulsion x1, Utility x3 2043 | -8/Materials | Central database locked down 2691 | -8/Materials | Build established: Skirmisher 2981 | -8/Materials | Discovered new exit (range 20) 3001 | -8/Materials | Identified exit to Factory 3566 | -8/Materials | Entered Factory 3566 | -7/Factory | Evolved 2 slots: Utility x2 4163 | -7/Factory | Build established: Hacker-Assassin 4246 | -7/Factory | Identified exit to Garrison 4246 | -7/Factory | Entered Garrison 4314 | -7/Garrison | Triggered checkpoint 4351 | -7/Garrison | Garrison Relay disabled 4429 | -7/Garrison | H-XX Assembler disabled 4572 | -7/Garrison | Triggered checkpoint 4629 | -7/Garrison | Core integrity fell below 50% 4641 | -7/Garrison | Build established: Hacker-Mutant 4651 | -7/Garrison | Lost 8 parts (3n2u3w) 4756 | -7/Garrison | Triggered checkpoint 5072 | -7/Garrison | Discovered new exit (range 9) 5087 | -7/Garrison | Identified exit to Factory 5138 | -7/Garrison | Triggered checkpoint 5198 | -7/Garrison | Core integrity fell below 20% 5228 | -7/Garrison | Lost 3 parts (1n2u) 5294 | -7/Garrison | System corruption reached 10% 5377 | -7/Garrison | Discovered exit to Factory (range 9) 5394 | -7/Garrison | Triggered checkpoint 5412 | -7/Garrison | Garrison Relay disabled 5606 | -7/Garrison | Build established: Scavenger-Mutant 5710 | -7/Garrison | Lost 3 parts (1n1u1w) 5724 | -7/Garrison | Discovered exit to Factory (range 12) 5971 | -7/Garrison | Build established: Mutant 6132 | -7/Garrison | Phase Generator disabled 6169 | -7/Garrison | Installed Relay Interface Framework 6213 | -7/Garrison | Entered Factory 6472 | -7/Factory | Build established: Bothacker-Mutant 7425 | -7/Factory | Destroyed by P-60 Hacker with Shock Rifle Last Messages --------------- 07407_ Nuclear Reactor explodes. 07407_ Destroyed Imp. Heat Sink. 07407_ Destroyed Lgt. Deuterium Engine. 07407_ W-25 Informer destroyed. 07407_ Destroyed Shock Rifle. 07409_ The unstable cave ceiling collapses. 07409_ Door malfunctions. 07410_ The unstable cave ceiling collapses. 07413_ Nuclear Reactor explodes. 07413_ Myomer Leg destroyed. 07413_ Destroyed Myomer Leg. 07414_ System Restoration Module purges 1% system corruption (17%). 07414_ System Restoration Module expended. 07421_ P-60 Hacker misfires. 07422_ Power Conduit explodes. 07422_ The unstable cave ceiling collapses. 07422_ Power Conduit explodes. 07425_ System corrupted: Heat flow error (+162). 07425_ K-01 Serf collects debris. Map ----- +----------------------------------------------------+ | ###+#############???????????????????????????????? | | # ??????????????????????????????? | | #!!! """ "??????????????????????????????? | | #!!! """ ""??????????????????????????????? | | #!!! """ "" #????? ????????????????????? | | # #??? ???????????????????? | | ## # [ ! #?? ????????????????????? | | # ###+########### ???????????????????? | | !#[% ######## ???????????????????? | | [= ??????????????????? | | " ??????????????????? | | # ] ??????????????????? | | "" """ """ """ """? #?????????????????? | | """""""## """ """ """ """ ##+#??????????????? | | # """ """ """ """ ??? ????????? | | " "" "" "" "" ?? ?????????? | | " "" "" "" "" ?????????? | | " ??????????? | | " k ??????????? | | " # ??????????? | | "## #### ??????????? | | " # #??# ;###?????????? | | """"## #??# ; ?????????? | | ## #??# ????????? | | ### # ####? #??# p ????????? | | ??####????? #??# @ ; ????????? | | ????????????#??# ; ????????? | | ?????????##+###;; ; ????????? | | ?????????# # # # ?????????? | | ?????????# #?#??####????????????? | | ?????????# #????????????????????? | | ?????????# #????????????????????? | | ?????????# #????????????????????? | | ?????????#! ! #????????????????????? | | ?????????# ! ! #????????????????????? | | ?????????# ! #????????????????????? | | ?????????##########;;;;;#####????????????????????? | | ??????????????????######?????????????????????????? | | ?????????????????????????????????????????????????? | | ?????????????????????????????????????????????????? | | ?????????????????????????????????????????????????? | | ?????????????????????????????????????????????????? | | ?????????????????????????????????????????????????? | | ?????????????????????????g???????????????????????? | | ?????????????????????????????????????????????????? | | ?????????????????????????????????????????????????? | | ?????????????????????????????????????????????????? | | ?????????????????????????????????????????????????? | | ?????????????????????????????????????????????????? | | ?????????????????????????????????????????????????? | +----------------------------------------------------+ Best States ------------- Heat Dissipation 48 Energy Generation 19 Energy Capacity 310 Matter Stores 300 Matter Capacity 300 Sight Range 20 Terrain Scan Density 10 Jamming Range 16 Corruption Block 5 Armor Coverage 225 Core Shielding 30 Phase Shifting 15 Evasion (%) 57 Energy Filtering 30 Offensive Hacking 20 Defensive Hacking 10 Relay Coupler Types 1 Relay Coupler Value 19 Item Schematics ----------------- None Robot Schematics ------------------ None Fabricated ------------ Nothing Repaired ---------- Nothing Studied --------- Imp. Aluminum Leg | -8/Materials | Hacked Alien Tech Used ----------------- None Achievements -------------- Blue Mage Challenges ------------ None Game ------ Seed SigixCobblerPlating Manual? 0 Play Time 01:03:40 Cumulative 77.4 hours Start 2026.09.06 @ 18:40:11 End 2026.09.06 @ 19:42:24 Sessions 1 Manual Loads 0 Difficulty Rogue Special Mode None Game No. 98 Rogue 98 Adventurer 0 Explorer 0 Win Type - Total 0 Types 0/0/0/0/0/0/0/0/0/0 Lore% 39 Gallery% 40 Achievement% 36 Wizard Run 0 Options --------- Layout 1 ASCII 0 Keyboard 0 Movement Mouse Keybinds 0 Fullscreen 2 Font 24/Smallcaps Map View 50x35 Zoom Use 0% Tactical HUD 1 Map Filters NONE Filters NONE Steam 1 RUN: 3d05e986-5573-4e4c-9bbe-771f6033b8f3